fUSD/lending_fUSD_20251221
["ID","MTS","AMOUNT","RATE_DAILY","PERIOD"]
[399372164,1766323844897,-150.0,0.00015649,2]
[399372165,1766323844907,-150.0,0.00015652,2]
[399372166,1766323844917,-269.9,0.00015674,2]
[399372167,1766323844926,-150.0,0.00015685,2]
[399372168,1766323844936,-150.0,0.00015692,2]
[399372169,1766323844946,-150.0,0.00015692,2]
[399372170,1766323844956,-150.0,0.00015712,2]
[399372171,1766323844965,-150.0,0.00015712,2]
[399372172,1766323844975,-150.0,0.00015712,2]
[399372173,1766323844985,-150.0,0.00015721,2]
[399372174,1766323844995,-150.0,0.00015733,2]
[399372175,1766323845005,-1172.42466185,0.00015749,2]
[399372176,1766323845015,-345.66258234,0.00015749,2]
[399372177,1766323845025,-1985.60848995,0.00015753,2]
[399372178,1766323845034,-150.0,0.00015758,2]
[399372179,1766323845044,-150.0,0.00015773,2]
[399372180,1766323845054,-150.0,0.00015773,2]
[399372181,1766323845063,-150.0,0.00015773,2]
[399372182,1766323845073,-296.83,0.00015776,2]
[399372183,1766323845082,-150.0,0.00015783,2]
[399372184,1766323845092,-150.0,0.00015794,2]
[399372185,1766323845101,-1252.0,0.00015795,2]
[399372186,1766323845112,-150.0,0.00015797,2]
[399372187,1766323845122,-334.23,0.00015807,2]
[399372188,1766323845134,-2228.99632343,0.00015807,2]
[399372189,1766323845144,-150.0,0.00015813,2]
[399372190,1766323845153,-150.0,0.0001583,2]
[399372191,1766323845162,-2133.96,0.00015852,2]
[399372192,1766323845172,-150.0,0.00015854,2]
[399372194,1766323845182,-150.0,0.00015854,2]
[399372195,1766323845191,-150.0,0.00015854,2]
[399372197,1766323845200,-150.0,0.00015854,2]
[399372199,1766323845210,-150.0,0.00015854,2]
[399372200,1766323845219,-150.0,0.00015866,2]
[399372201,1766323845228,-314.1002931,0.00015875,2]
[399372202,1766323845238,-150.0,0.00015882,2]
[399372203,1766323845247,-150.0,0.00015894,2]
[399372204,1766323845257,-150.0,0.00015902,2]
[399372205,1766323845267,-31752.91727692,0.0001591,2]
[399372206,1766323845276,-277.35679052,0.00015915,2]
[399372207,1766323845286,-311.1,0.00015915,2]
[399372208,1766323845295,-150.0,0.00015925,2]
[399372209,1766323845305,-150.0,0.00015935,2]
[399372210,1766323845316,-150.0,0.00015935,2]
[399372211,1766323845325,-150.0,0.00015938,2]
[399372212,1766323845335,-150.0,0.00015967,2]
[399372213,1766323845344,-500.0,0.00015973,2]
[399372214,1766323845354,-500.82535785,0.00015973,2]
[399372215,1766323845363,-570.29356194,0.00015973,2]
[399372216,1766323845373,-500.0,0.00015973,2]
[399372217,1766323845383,-500.0,0.00015973,2]
[399372218,1766323845392,-500.0,0.00015973,2]
[399372219,1766323845402,-500.0,0.00015973,2]
[399372220,1766323845412,-162.2682575,0.00015973,2]
[399372221,1766323845421,-500.0,0.00015973,2]
[399372222,1766323845431,-330.74959628,0.00015973,2]
[399372223,1766323845440,-500.0,0.00015973,2]
[399372224,1766323845449,-500.77244015,0.00015973,2]
[399372225,1766323845459,-500.4654119,0.00015973,2]
[399372226,1766323845469,-500.0,0.00015973,2]
[399372227,1766323845478,-500.0,0.00015973,2]
[399372228,1766323845488,-555.97636192,0.00015973,2]
[399372229,1766323845498,-500.0,0.00015973,2]
[399372230,1766323845507,-500.0,0.00015973,2]
[399372231,1766323845517,-500.30670484,0.00015973,2]
[399372232,1766323845527,-500.47443561,0.00015973,2]
[399372233,1766323845537,-500.0,0.00015973,2]
[399372234,1766323845546,-500.81615011,0.00015973,2]
[399372235,1766323845557,-160.18740865,0.00015973,2]
[399372236,1766323845567,-160.18648371,0.00015973,2]
[399372237,1766323845576,-160.18741035,0.00015973,2]
[399372238,1766323845586,-160.18818998,0.00015973,2]
[399372239,1766323845597,-160.18741035,0.00015973,2]
[399372240,1766323845606,-334.60508476,0.00015973,2]
[399372241,1766323845616,-501.45767981,0.00015973,2]
[399372242,1766323845626,-518.86476464,0.00015973,2]
[399372243,1766323845637,-590.29428357,0.00015973,2]
[399372244,1766323845646,-500.0,0.00015973,2]
[399372245,1766323845655,-160.18741035,0.00015973,2]
[399372246,1766323845666,-269.64224637,0.00015973,2]
[399372247,1766323845676,-500.0,0.00015973,2]
[399372248,1766323845687,-500.0,0.00015973,2]
[399372249,1766323845696,-500.0,0.00015973,2]
[399372250,1766323845706,-500.0,0.00015973,2]
[399372252,1766323845715,-500.0,0.00015973,2]
[399372254,1766323845732,-500.0,0.00015973,2]
[399372255,1766323845746,-500.0,0.00015973,2]
[399372256,1766323845756,-500.0,0.00015973,2]
[399372257,1766323845767,-500.0,0.00015973,2]
[399372258,1766323845776,-500.0,0.00015973,2]
[399372259,1766323845786,-500.0,0.00015973,2]
[399372260,1766323845795,-500.0,0.00015973,2]
[399372261,1766323845804,-162.38378184,0.00015973,2]
[399372262,1766323845813,-500.0,0.00015973,2]
[399372263,1766323845822,-500.56420784,0.00015973,2]
[399372264,1766323845832,-500.0,0.00015973,2]
[399372265,1766323845841,-500.0,0.00015973,2]
[399372266,1766323845850,-500.0,0.00015973,2]
[399372267,1766323845860,-333.50168371,0.00015973,2]
[399372268,1766323845869,-160.18477965,0.00015973,2]
[399372269,1766323845879,-160.18740865,0.00015973,2]
[399372271,1766323845888,-500.52093975,0.00015973,2]
[399372273,1766323845897,-500.67170266,0.00015973,2]
[399372275,1766323845906,-160.18740865,0.00015973,2]
[399372276,1766323845915,-168.18676432,0.00015973,2]
[399372277,1766323845924,-500.0,0.00015973,2]
[399372278,1766323845933,-500.0,0.00015973,2]
[399372279,1766323845942,-160.176,0.00015973,2]
[399372280,1766323845951,-160.18546537,0.00015973,2]
[399372281,1766323845960,-500.0,0.00015973,2]
[399372282,1766323845969,-160.18741035,0.00015973,2]
[399372283,1766323845979,-160.18740865,0.00015973,2]
[399372284,1766323845989,-160.18740865,0.00015973,2]
[399372285,1766323845998,-177.38138354,0.00015973,2]
[399372286,1766323846007,-160.18648397,0.00015973,2]
[399372287,1766323846016,-426.64941198,0.00015973,2]
[399372288,1766323846026,-160.18740865,0.00015973,2]
[399372289,1766323846036,-160.18740865,0.00015973,2]
[399372290,1766323846045,-500.0,0.00015973,2]
[399372291,1766323846056,-500.0,0.00015973,2]
[399372292,1766323846065,-500.0,0.00015973,2]
[399372293,1766323846075,-530.05316157,0.00015973,2]
[399372294,1766323846085,-500.0,0.00015973,2]
[399372295,1766323846095,-500.0,0.00015973,2]
[399372296,1766323846105,-500.0,0.00015973,2]
[399372297,1766323846115,-168.59717172,0.00015973,2]
[399372298,1766323846133,-150.0,0.00015974,2]
[399372299,1766323846142,-150.0,0.00015975,2]
[399372300,1766323846151,-1345.44458259,0.0001599,2]
[399372301,1766323846161,-150.0,0.00015995,2]
[399372302,1766323846175,-151.0,0.00015997,2]
[399372303,1766323846185,-151.0,0.00015997,2]
[399372304,1766323846196,-1475664.67251297,0.00016,4]
[399372305,1766323846220,-62380.68402102,0.00016,4]
[399372306,1766323850596,-1.7e-07,0.00011113,2]
[399372307,1766323851388,-691.10317124,0.00011113,2]
[399372308,1766323851399,-91.20302353,0.00011113,2]
[399372309,1766323851409,-4430.16970785,0.00016,4]
[399372310,1766323851421,-694916.62420522,0.00016,4]
[399372311,1766323851430,-150.0,0.0001601,2]
[399372312,1766323851440,-3000.0,0.00016012,2]
[399372313,1766323851449,-1454.77156402,0.00016012,2]
[399372314,1766323851459,-3000.0,0.00016012,2]
[399372315,1766323851467,-3000.0,0.00016012,2]
[399372316,1766323851477,-3000.0,0.00016012,2]
[399372317,1766323851486,-150.0,0.00016016,2]
[399372318,1766323851495,-150.0,0.00016016,2]
[399372319,1766323851504,-150.0,0.00016016,2]
[399372320,1766323851514,-1226.3358889,0.00016041,2]
[399372321,1766323851523,-150.0,0.00016047,2]
[399372322,1766323851533,-150.0,0.00016052,2]
[399372323,1766323851542,-150.0,0.00016056,2]
[399372324,1766323851551,-150.0,0.00016066,2]
[399372325,1766323851560,-4609.0,0.00016082,2]
[399372326,1766323851570,-150.0,0.00016083,2]
[399372327,1766323851579,-150.0,0.00016097,2]
[399372328,1766323851587,-150.0,0.00016097,2]
[399372329,1766323851598,-150.0,0.00016119,2]
[399372330,1766323851607,-2133.96,0.00016125,2]
[399372331,1766323851616,-150.0,0.00016137,2]
[399372332,1766323851626,-150.0,0.00016137,2]
[399372333,1766323851635,-150.0,0.00016137,2]
[399372334,1766323851644,-150.0,0.00016137,2]
[399372335,1766323851653,-150.0,0.00016137,2]
[399372336,1766323851662,-150.0,0.00016137,2]
[399372337,1766323851671,-150.0,0.00016137,2]
[399372338,1766323851680,-150.0,0.00016137,2]
[399372339,1766323851688,-150.0,0.00016155,2]
[399372340,1766323851698,-150.0,0.00016177,2]
[399372341,1766323851707,-150.0,0.00016177,2]
[399372342,1766323851716,-150.0,0.00016191,2]
[399372343,1766323851725,-5000.00104499,0.000162,5]
[399372344,1766323851734,-150.0,0.00016208,2]
[399372345,1766323851743,-150.0,0.00016218,2]
[399372346,1766323851752,-150.0,0.00016222,2]
[399372347,1766323851762,-150.0,0.00016227,2]
[399372348,1766323851771,-29317.55006083,0.00016244,2]
[399372349,1766323851781,-150.0,0.00016258,2]
[399372350,1766323851790,-150.0,0.00016258,2]
[399372351,1766323851799,-150.0,0.00016258,2]
[399372352,1766323851809,-150.0,0.00016263,2]
[399372353,1766323851819,-150.0,0.00016279,2]
[399372354,1766323851827,-500.0,0.0001628,2]
[399372355,1766323851836,-916.99,0.0001628,2]
[399372356,1766323851846,-150.0,0.0001628,2]
[399372357,1766323851855,-150.0,0.00016299,2]
[399372358,1766323851864,-150.0,0.000163,2]
[399372359,1766323851873,-150.0,0.00016307,2]
[399372360,1766323851883,-150.0,0.00016336,2]
[399372361,1766323851893,-150.0,0.00016339,2]
[399372362,1766323851902,-150.0,0.00016339,2]
[399372363,1766323851911,-150.0,0.00016349,2]
[399372364,1766323851920,-150.0,0.00016372,2]
[399372365,1766323851929,-1074.0,0.00016375,2]
[399372366,1766323851938,-150.0,0.0001638,2]
[399372367,1766323851947,-150.0,0.00016392,2]
[399372368,1766323851957,-500.0,0.00016393,2]
[399372369,1766323851966,-2133.97202621,0.00016399,2]
[399372370,1766323851974,-1009.0,0.000164,2]
[399372371,1766323851984,-150.0,0.00016408,2]
[399372372,1766323851994,-150.0,0.0001642,2]
[399372373,1766323852003,-150.0,0.0001642,2]
[399372374,1766323852012,-150.0,0.0001642,2]
[399372375,1766323852021,-150.0,0.0001642,2]
[399372376,1766323852030,-150.0,0.0001642,2]
[399372377,1766323852040,-649.58,0.00016437,2]
[399372378,1766323852049,-151.0,0.00016438,2]
[399372379,1766323852059,-151.0,0.00016438,2]
[399372380,1766323852068,-293.018097,0.00016438,2]
[399372381,1766323852078,-293.018097,0.00016438,2]
[399372382,1766323852088,-293.018097,0.00016438,2]
[399372383,1766323852099,-293.018097,0.00016438,2]
[399372384,1766323852109,-2010.64031604,0.00016438,2]
[399372385,1766323852120,-2010.64031604,0.00016438,2]
[399372386,1766323852130,-2010.64031604,0.00016438,2]
[399372387,1766323852142,-2010.64031604,0.00016438,2]
[399372388,1766323852153,-2010.64031604,0.00016438,2]
[399372389,1766323852162,-2010.64031604,0.00016438,2]
[399372390,1766323852171,-2010.64031604,0.00016438,2]
[399372391,1766323852182,-2010.64031604,0.00016438,2]
[399372392,1766323852191,-2010.64031604,0.00016438,2]
[399372393,1766323852201,-2010.64031604,0.00016438,2]
[399372394,1766323852213,-2010.64031604,0.00016438,2]
[399372395,1766323852222,-2010.64031604,0.00016438,2]
[399372396,1766323852231,-2010.64031604,0.00016438,2]
[399372397,1766323852241,-2010.64031604,0.00016438,2]
[399372398,1766323852251,-2010.64031604,0.00016438,2]
[399372399,1766323852260,-2010.64031604,0.00016438,2]
[399372400,1766323852270,-2010.64031604,0.00016438,2]
[399372401,1766323852279,-2010.64031604,0.00016438,2]
[399372402,1766323852290,-2010.64031604,0.00016438,2]
[399372403,1766323852299,-2010.64031604,0.00016438,2]
[399372404,1766323852309,-2010.64031604,0.00016438,2]
[399372405,1766323852318,-2010.64031604,0.00016438,2]
[399372406,1766323852328,-2010.64031604,0.00016438,2]
[399372407,1766323852337,-2010.64031604,0.00016438,2]
[399372408,1766323852348,-2010.64031604,0.00016438,2]
[399372409,1766323852358,-2010.64031604,0.00016438,2]
[399372410,1766323852368,-2010.64031604,0.00016438,2]
[399372411,1766323852378,-2010.64031604,0.00016438,2]
[399372412,1766323852387,-2010.64031604,0.00016438,2]
[399372413,1766323852396,-2010.64031604,0.00016438,2]
[399372414,1766323852407,-2010.64031604,0.00016438,2]
[399372415,1766323852416,-2010.64031604,0.00016438,2]
[399372416,1766323852426,-2010.64031604,0.00016438,2]
[399372417,1766323852436,-2010.64031604,0.00016438,2]
[399372418,1766323852446,-2010.64031604,0.00016438,2]
[399372419,1766323852456,-2010.64031604,0.00016438,2]
[399372420,1766323852465,-2010.64031604,0.00016438,2]
[399372421,1766323852475,-2010.64031604,0.00016438,2]
[399372422,1766323852485,-2010.64031604,0.00016438,2]
[399372423,1766323852495,-2010.64031604,0.00016438,2]
[399372424,1766323852505,-2010.64031604,0.00016438,2]
[399372425,1766323852516,-2010.64031604,0.00016438,2]
[399372426,1766323852527,-2010.64031604,0.00016438,2]
[399372427,1766323852538,-2010.64031604,0.00016438,2]
[399372428,1766323852548,-2010.64031604,0.00016438,2]
[399372429,1766323852558,-2010.64031604,0.00016438,2]
[399372430,1766323852569,-2010.64031604,0.00016438,2]
[399372431,1766323852578,-2010.64031604,0.00016438,2]
[399372432,1766323852589,-2010.64031604,0.00016438,2]
[399372433,1766323852599,-2010.64031604,0.00016438,2]
[399372434,1766323852608,-2010.64031604,0.00016438,2]
[399372435,1766323852618,-2010.64031604,0.00016438,2]
[399372436,1766323852627,-2010.64031604,0.00016438,2]
[399372437,1766323852636,-2010.64031604,0.00016438,2]
[399372438,1766323852647,-2010.64031604,0.00016438,2]
[399372439,1766323852657,-2010.64031604,0.00016438,2]
[399372440,1766323852666,-2010.64031604,0.00016438,2]
[399372441,1766323852676,-2010.64031604,0.00016438,2]
[399372442,1766323852687,-2010.64031604,0.00016438,2]
[399372443,1766323852696,-2010.64031604,0.00016438,2]
[399372444,1766323852706,-1996.77383111,0.00016438,2]
[399372445,1766323852715,-1996.77383111,0.00016438,2]
[399372446,1766323852725,-1996.77383111,0.00016438,2]
[399372447,1766323852734,-1996.77383111,0.00016438,2]
[399372448,1766323852745,-1996.77383111,0.00016438,2]
[399372449,1766323852754,-1996.77383111,0.00016438,2]
[399372450,1766323852764,-1996.77383111,0.00016438,2]
[399372451,1766323852773,-1996.77383111,0.00016438,2]
[399372452,1766323852783,-1996.77383111,0.00016438,2]
[399372453,1766323852792,-1996.77383111,0.00016438,2]
[399372454,1766323852802,-1996.77383111,0.00016438,2]
[399372455,1766323852811,-1996.77383111,0.00016438,2]
[399372456,1766323852820,-1996.77383111,0.00016438,2]
[399372457,1766323852829,-1996.77383111,0.00016438,2]
[399372458,1766323852838,-1996.77383111,0.00016438,2]
[399372459,1766323852849,-1996.77383111,0.00016438,2]
[399372460,1766323852859,-1996.77383111,0.00016438,2]
[399372461,1766323852869,-1996.77383111,0.00016438,2]
[399372462,1766323852878,-1996.77383111,0.00016438,2]
[399372463,1766323852887,-1996.77383111,0.00016438,2]
[399372464,1766323852896,-1996.77383111,0.00016438,2]
[399372465,1766323852905,-1996.77383111,0.00016438,2]
[399372466,1766323852914,-1996.77383111,0.00016438,2]
[399372467,1766323852923,-1996.77383111,0.00016438,2]
[399372468,1766323852933,-1996.77383111,0.00016438,2]
[399372469,1766323852942,-1996.77383111,0.00016438,2]
[399372470,1766323852951,-1996.77383111,0.00016438,2]
[399372471,1766323852960,-1996.77383111,0.00016438,2]
[399372472,1766323852969,-11351.2,0.00016438,2]
[399372473,1766323852978,-553.63,0.00016438,2]
[399372474,1766323852988,-151.0,0.00016438,2]
[399372475,1766323852997,-800.0,0.00016438,2]
[399372476,1766323853006,-150.0,0.00016444,2]
[399372477,1766323853015,-150.0,0.00016461,2]
[399372478,1766323853025,-150.0,0.00016477,2]
[399372479,1766323853035,-150.0,0.0001648,2]
[399372480,1766323853045,-150.0,0.00016491,2]
[399372481,1766323853055,-150.0,0.00016501,2]
[399372482,1766323853065,-150.0,0.00016501,2]
[399372483,1766323853075,-150.0,0.00016501,2]
[399372484,1766323853085,-150.0,0.00016516,2]
[399372485,1766323853096,-224.92,0.00016517,2]
[399372486,1766323853106,-197.05869145,0.00016518,2]
[399372487,1766323853116,-500.0,0.00016521,2]
[399372488,1766323853125,-248.8938967,0.00016521,2]
[399372489,1766323853136,-1000.0,0.00016521,2]
[399372490,1766323853146,-1000.0,0.00016521,2]
[399372491,1766323853155,-1000.0,0.00016521,2]
[399372492,1766323853165,-1000.0,0.00016521,2]
[399372493,1766323853174,-1000.0,0.00016521,2]
[399372494,1766323853184,-979.05040621,0.00016521,2]
[399372495,1766323853194,-810.71387342,0.00016521,2]
[399372496,1766323853203,-811.84683956,0.00016521,2]
[399372497,1766323853213,-1000.0,0.00016521,2]
[399372498,1766323853222,-1000.0,0.00016521,2]
[399372499,1766323853232,-1000.0,0.00016521,2]
[399372500,1766323853241,-576.10062402,0.00016521,2]
[399372501,1766323853251,-669.31135743,0.00016521,2]
[399372502,1766323853261,-1000.0,0.00016521,2]
[399372503,1766323853270,-1000.0,0.00016521,2]
[399372504,1766323853280,-1000.0,0.00016521,2]
[399372505,1766323853290,-1000.0,0.00016521,2]
[399372506,1766323853299,-1000.0,0.00016521,2]
[399372507,1766323853309,-1000.0,0.00016521,2]
[399372508,1766323853320,-1000.0,0.00016521,2]
[399372509,1766323853331,-1001.73216536,0.00016521,2]
[399372510,1766323853344,-1000.0,0.00016521,2]
[399372511,1766323853356,-1000.0,0.00016521,2]
[399372512,1766323853367,-1000.0,0.00016521,2]
[399372513,1766323853378,-1000.0,0.00016521,2]
[399372514,1766323853390,-1000.0,0.00016521,2]
[399372515,1766323853401,-1000.0,0.00016521,2]
[399372516,1766323853411,-1000.0,0.00016521,2]
[399372517,1766323853422,-1000.0,0.00016521,2]
[399372518,1766323853432,-1000.0,0.00016521,2]
[399372519,1766323853443,-1000.0,0.00016521,2]
[399372520,1766323853453,-378.15038662,0.00016521,2]
[399372521,1766323853463,-1000.0,0.00016521,2]
[399372522,1766323853473,-1000.0,0.00016521,2]
[399372523,1766323853484,-1000.0,0.00016521,2]
[399372524,1766323853494,-1000.0,0.00016521,2]
[399372525,1766323853504,-150.0,0.00016541,2]
[399372526,1766323853514,-150.0,0.00016553,2]
[399372527,1766323853524,-3500.0,0.0001656,2]
[399372528,1766323853534,-1430.65913207,0.0001656,2]
[399372529,1766323853544,-3500.0,0.0001656,2]
[399372530,1766323853554,-1971.24302708,0.0001656,2]
[399372531,1766323853564,-150.0,0.00016562,2]
[399372532,1766323853575,-150.0,0.00016562,2]
[399372533,1766323853585,-150.0,0.00016562,2]
[399372534,1766323853597,-150.0,0.00016582,2]
[399372535,1766323853607,-150.0,0.00016582,2]
[399372536,1766323853617,-150.0,0.00016589,2]
[399372537,1766323853627,-224.92,0.0001659,2]
[399372538,1766323853637,-150.0,0.00016622,2]
[399372539,1766323853647,-150.0,0.00016625,2]
[399372540,1766323853656,-150.0,0.00016632,2]
[399372541,1766323853665,-197.89,0.00016642,2]
[399372542,1766323853675,-150.0,0.00016647,2]
[399372543,1766323853685,-222.82,0.00016649,2]
[399372544,1766323853695,-150.0,0.00016661,2]
[399372545,1766323853705,-1074.0,0.00016662,2]
[399372546,1766323853715,-150.0,0.00016663,2]
[399372547,1766323853724,-150.0,0.00016663,2]
[399372548,1766323853733,-150.0,0.00016697,2]
[399372549,1766323853743,-150.0,0.00016703,2]
[399372550,1766323853753,-150.0,0.00016703,2]
[399372551,1766323853763,-150.0,0.00016703,2]
[399372552,1766323853773,-150.0,0.00016703,2]
[399372553,1766323853783,-165.14,0.00016712,2]
[399372554,1766323853793,-200.80764574,0.00016724,2]
[399372555,1766323853803,-150.0,0.00016732,2]
[399372556,1766323853813,-150.0,0.00016733,2]
[399372557,1766323853822,-222.82,0.00016737,2]
[399372558,1766323853832,-150.0,0.00016744,2]
[399372559,1766323853842,-150.0,0.00016744,2]
[399372560,1766323853852,-150.0,0.00016744,2]
[399372561,1766323853861,-1074.0,0.00016769,2]
[399372562,1766323853871,-150.0,0.00016769,2]
[399372563,1766323853881,-150.0,0.00016774,2]
[399372564,1766323853891,-150.0,0.00016784,2]
[399372565,1766323853901,-1074.0,0.00016787,2]
[399372566,1766323853911,-150.0,0.00016806,2]
[399372567,1766323853920,-150.0,0.00016816,2]
[399372568,1766323853930,-150.0,0.00016825,2]
[399372569,1766323853940,-150.0,0.00016825,2]
[399372570,1766323853952,-7000.0,0.0001683,2]
[399372571,1766323853962,-150.0,0.00016842,2]
[399372572,1766323853972,-150.0,0.00016845,2]
[399372573,1766323853983,-150.0,0.00016865,2]
[399372574,1766323853993,-150.0,0.00016878,2]
[399372575,1766323854004,-209.0,0.00016878,2]
[399372576,1766323854014,-853.027,0.00016886,2]
[399372578,1766323854024,-1000.0,0.00016886,2]
[399372579,1766323854034,-1000.0,0.00016886,2]
[399372580,1766323854045,-649.58,0.00016899,2]
[399372581,1766323854055,-29317.55006083,0.000169,2]
[399372582,1766323854065,-6978.0,0.000169,2]
[399372583,1766323854075,-150.0,0.00016901,2]
[399372584,1766323854085,-150.0,0.00016905,2]
[399372585,1766323854098,-150.0,0.00016905,2]
[399372586,1766323854108,-1172.42466185,0.00016909,2]
[399372587,1766323854118,-345.66258234,0.00016909,2]
[399372588,1766323854128,-1069.39940285,0.00016909,2]
[399372589,1766323854138,-150.0,0.00016914,2]
[399372590,1766323854151,-150.0,0.00016916,2]
[399372591,1766323854161,-150.0,0.00016946,2]
[399372592,1766323854171,-7000.0,0.0001695,2]
[399372593,1766323854181,-150.0,0.0001695,2]
[399372594,1766323854191,-150.0,0.00016973,2]
[399372595,1766323854200,-549.74315086,0.00016983,2]
[399372596,1766323854210,-152.0542516,0.00016986,2]
[399372597,1766323854219,-155.64705311,0.00016986,2]
[399372598,1766323854229,-158.48329942,0.00016986,2]
[399372599,1766323854239,-156.76422926,0.00016986,2]
[399372600,1766323854248,-151.72084113,0.00016986,2]
[399372601,1766323854258,-164.52110484,0.00016986,2]
[399372602,1766323854268,-151.68546766,0.00016986,2]
[399372603,1766323854278,-152.94375339,0.00016986,2]
[399372604,1766323854287,-150.82546103,0.00016986,2]
[399372605,1766323854297,-152.11986511,0.00016986,2]
[399372606,1766323854306,-157.75435091,0.00016986,2]
[399372607,1766323854317,-162.0002847,0.00016986,2]
[399372608,1766323854326,-152.70737667,0.00016986,2]
[399372609,1766323854336,-649.58,0.00016998,2]
[399372610,1766323854348,-649.58,0.00016998,2]
[399372611,1766323854358,-649.58,0.00016998,2]
[399372612,1766323854368,-649.58,0.00016999,2]
[399372613,1766323854378,-649.58,0.00016999,2]
[399372614,1766323854388,-649.58,0.00016999,2]
[399372615,1766323854398,-649.58,0.00016999,2]
[399372616,1766323854408,-649.58,0.00016999,2]
[399372617,1766323854418,-649.58,0.00016999,2]
[399372618,1766323854427,-649.58,0.00016999,2]
[399372619,1766323854437,-649.58,0.00016999,2]
[399372620,1766323854447,-649.58,0.00016999,2]
[399372621,1766323854462,-649.58,0.00016999,2]
[399372622,1766323854472,-649.58,0.00016999,2]
[399372623,1766323854482,-649.58,0.00016999,2]
[399372624,1766323854492,-649.58,0.00016999,2]
[399372625,1766323854502,-649.66,0.00016999,2]
[399372626,1766323854512,-500.0,0.00016999,2]
[399372627,1766323854521,-500.0,0.00016999,2]
[399372628,1766323854531,-500.0,0.00016999,2]
[399372629,1766323854541,-500.0,0.00016999,2]
[399372630,1766323854551,-500.0,0.00016999,2]
[399372631,1766323854561,-916.99,0.00016999,2]
[399372632,1766323854570,-916.99,0.00016999,2]
[399372633,1766323854580,-916.99,0.00016999,2]
[399372634,1766323854591,-916.99,0.00016999,2]
[399372635,1766323854603,-916.99,0.00016999,2]
[399372636,1766323854612,-2014.45964951,0.00016999,2]
[399372637,1766323854622,-1137516.3466267,0.00017,2]
[399372638,1766323854632,-2000.0,0.00017,2]
[399372639,1766323854642,-151.6,0.00017,2]
[399372640,1766323854651,-1000.0,0.00017,2]
[399372641,1766323854661,-1000.0,0.00017,2]
[399372642,1766323854670,-1000.0,0.00017,2]
[399372643,1766323854680,-1000.0,0.00017,2]
[399372644,1766323854689,-1000.0,0.00017,2]
[399372645,1766323854699,-1000.0,0.00017,2]
[399372646,1766323854709,-1000.0,0.00017,2]
[399372647,1766323854718,-1000.0,0.00017,2]
[399372648,1766323854727,-1000.0,0.00017,2]
[399372649,1766323854737,-1000.0,0.00017,2]
[399372650,1766323854746,-1000.0,0.00017,2]
[399372651,1766323854756,-1000.0,0.00017,2]
[399372652,1766323854766,-1000.0,0.00017,2]
[399372653,1766323854775,-1000.0,0.00017,2]
[399372654,1766323854784,-1000.0,0.00017,2]
[399372655,1766323854793,-1000.0,0.00017,2]
[399372656,1766323854803,-1000.0,0.00017,2]
[399372657,1766323854812,-1000.0,0.00017,2]
[399372658,1766323854822,-1000.0,0.00017,2]
[399372659,1766323854831,-1000.0,0.00017,2]
[399372660,1766323854839,-1000.0,0.00017,2]
[399372661,1766323854850,-1000.0,0.00017,2]
[399372662,1766323854859,-1000.0,0.00017,2]
[399372663,1766323854869,-1000.0,0.00017,2]
[399372664,1766323854878,-1000.0,0.00017,2]
[399372665,1766323854887,-1000.0,0.00017,2]
[399372666,1766323854896,-1000.0,0.00017,2]
[399372667,1766323854905,-1074.23710306,0.00017,2]
[399372668,1766323854916,-255.307319,0.00017,2]
[399372669,1766323854925,-300.58648083,0.00017,2]
[399372670,1766323854934,-151.0,0.00017,2]
[399372671,1766323854943,-152.067628,0.00017,2]
[399372672,1766323854952,-151.0,0.00017,2]